bitfinex/quotes_ETHUSD_20250711
["timestamp","ask_amount","ask_price","bid_price","bid_amount"]
[1752210133452,5.74780123,2967.8,2967.7,0.001]
[1752210133706,10.86780123,2967.8,2967.7,0.001]
[1752210134860,10.86880123,2967.8,2967.7,0.001]
[1752210138151,5.74780123,2967.8,2967.7,0.001]
[1752210138362,11.57086135,2967.8,2967.7,0.001]
[1752210140162,11.57186135,2967.8,2967.7,0.001]
[1752210140477,11.57186135,2967.8,2967.7,0.4299]
[1752210141272,0.70306012,2967.8,2967.7,0.4299]
[1752210141474,3.36890806,2968.4,2967.7,0.4299]
[1752210141475,10.8078,2968.4,2967.8,0.7947]
[1752210141672,0.168,2968.0,2967.9,0.4289]
[1752210141874,5.288,2968.0,2967.9,0.4289]
[1752210143183,0.168,2968.0,2967.9,0.4289]
[1752210143553,5.288,2968.0,2967.9,0.4289]
[1752210144168,0.168,2968.0,2967.9,0.4289]
[1752210144366,5.288,2968.0,2967.9,0.4289]
[1752210145278,0.168,2968.0,2967.9,0.4289]
[1752210145481,9.705,2968.8,2967.9,0.4289]
[1752210145661,9.705,2968.8,2968.0,0.8265]
[1752210145662,0.168,2968.4,2968.0,0.8265]
[1752210145861,5.12,2968.3,2968.1,0.4289]
[1752210146592,5.12,2968.3,2968.2,0.4289]
[1752210146900,5.12,2968.3,2968.0,1.2554]
[1752210147061,5.12,2968.3,2968.1,0.4289]
[1752210147399,5.12,2968.3,2968.2,0.4289]
[1752210147587,0.168,2968.4,2968.2,0.4289]
[1752210147765,5.12,2968.3,2968.2,0.4289]
[1752210148372,0.168,2968.4,2968.2,0.4289]
[1752210148581,0.168,2968.4,2968.0,0.8265]
[1752210148887,5.12,2968.3,2968.0,0.8265]
[1752210149268,0.168,2968.4,2968.0,0.8265]
[1752210149461,5.12,2968.3,2968.0,0.8265]
[1752210149983,0.168,2968.4,2968.0,0.8265]
[1752210150185,5.12,2968.2,2968.0,0.8265]
[1752210151892,0.168,2968.4,2968.0,0.8265]
[1752210152100,5.12,2968.3,2968.0,0.8265]
[1752210154574,0.168,2968.4,2968.0,0.8265]
[1752210154761,5.12,2968.2,2968.0,0.8265]
[1752210156296,5.119,2968.1,2968.0,0.8265]
[1752210157201,0.168,2968.4,2968.0,0.8265]
[1752210157399,5.119,2968.1,2968.0,0.8265]
[1752210160793,5.6309,2968.1,2967.8,0.168]
[1752210161100,5.6309,2968.1,2967.7,0.001]
[1752210161101,5.7989,2968.1,2967.7,0.001]
[1752210161276,5.6309,2968.1,2967.7,0.001]
[1752210161471,5.91580123,2967.9,2967.7,0.001]
[1752210161703,5.79052012,2967.8,2967.7,0.001]
[1752210176816,0.67152012,2967.8,2967.7,0.001]
[1752210177019,0.002,2968.2,2967.8,0.7962]
[1752210177184,0.002,2968.2,2968.1,16.50770123]
[1752210177385,0.002,2968.2,2968.1,11.28897735]
[1752210177615,0.002,2968.2,2968.1,10.7599]
[1752210178195,0.002,2968.2,2968.1,11.83589]
[1752210179212,0.002,2968.2,2968.1,12.40180069]
[1752210179420,0.002,2968.2,2968.1,12.98936098]
[1752210180393,0.002,2968.2,2968.1,12.40180069]
[1752210182631,0.002,2968.2,2968.1,10.7599]
[1752210183835,0.002,2968.2,2968.1,11.91337098]
[1752210184335,0.002,2968.2,2968.1,11.32581069]
[1752210186535,0.002,2968.2,2968.1,17.66117221]
[1752210187126,0.002,2968.2,2968.1,17.82917221]
[1752210187427,0.002,2968.2,2968.1,19.94902354]
[1752210190005,0.002,2968.2,2968.1,14.20122231]
[1752210193114,0.002,2968.2,2968.1,17.57038103]
[1752210194828,0.002,2968.2,2968.1,27.85438103]
[1752210201372,0.002,2968.2,2968.1,22.11982074]
[1752210202366,0.002,2968.2,2968.1,22.66971436]
[1752210202659,0.002,2968.2,2968.1,28.41751559]
[1752210210863,0.002,2968.2,2968.1,28.96751559]
[1752210211023,0.002,2969.0,2968.3,3.36887916]
[1752210211227,0.002,2969.0,2968.9,5.74780123]
[1752210211431,0.002,2969.0,2968.9,9.31773459]
[1752210211666,0.002,2969.0,2968.9,9.84996278]
[1752210212042,0.002,2969.0,2968.9,6.48171192]
[1752210212247,0.002,2969.0,2968.9,6.51539442]
[1752210212448,0.002,2969.0,2968.9,8.6067967]
[1752210212633,0.002,2969.0,2968.9,8.5731142]
[1752210214772,0.002,2969.0,2968.9,2.82531297]
[1752210214932,0.002,2969.0,2968.9,2.85899547]
[1752210215371,0.002,2969.0,2968.9,2.25940228]
[1752210215583,0.002,2969.0,2968.9,0.168]
[1752210216377,0.002,2969.0,2968.9,0.2016825]
[1752210217663,0.002,2969.0,2968.9,0.168]
[1752210222045,0.002,2969.0,2968.9,0.71789362]
[1752210222400,0.002,2969.0,2968.9,0.168]
[1752210223364,0.002,2969.0,2968.7,10.0]
[1752210223365,0.7918,2969.0,2968.5,10.0]
[1752210223565,0.7918,2969.0,2968.8,0.168]
[1752210231897,0.002,2969.0,2968.9,17.37450123]
[1752210232195,0.002,2969.0,2968.9,33.98943437]
[1752210233101,0.002,2969.2,2969.1,14.13392398]
[1752210233271,0.002,2969.2,2969.1,25.54972829]
[1752210237802,0.002,2969.2,2969.1,25.79819885]
[1752210238097,0.002,2969.2,2969.1,29.20889821]
[1752210238603,0.002,2969.2,2969.1,19.88651005]
[1752210238787,0.002,2969.2,2969.1,16.47581069]
[1752210239301,0.002,2969.2,2969.1,22.22461192]
[1752210239497,0.002,2969.2,2969.1,22.77450554]
[1752210241302,0.002,2969.2,2969.1,26.14252952]
[1752210241602,0.002,2969.2,2969.1,22.77450554]
[1752210241773,0.002,2969.2,2969.1,28.75680445]
[1752210241974,0.002,2969.2,2969.1,25.55678047]
[1752210242394,0.002,2969.2,2969.1,28.92480445]
[1752210246204,0.002,2969.4,2969.2,10.8201]
[1752210246404,0.002,2969.7,2969.6,3.36745689]
[1752210246608,0.002,2970.1,2970.0,3.36700336]
[1752210246795,0.002,2970.1,2970.0,30.22820459]
[1752210247104,0.002,2970.1,2970.0,31.5120089]
[1752210248301,0.002,2970.1,2970.0,31.9620089]
[1752210252008,0.04,2970.9,2970.3,3.36657715]
[1752210252213,0.04,2970.9,2970.8,5.74780123]
[1752210252437,0.04,2970.9,2970.8,5.94946219]
[1752210255587,0.042,2970.9,2970.8,20.3977022]
[1752210255885,0.042,2970.9,2970.8,17.03160553]
[1752210256412,0.042,2970.9,2970.8,20.3977022]
[1752210256612,0.042,2970.9,2970.8,22.23878543]
[1752210257517,0.042,2970.9,2970.8,23.58078543]
[1752210258153,0.042,2970.9,2970.8,23.82716957]
[1752210259429,0.8198,2971.9,2971.3,3.36549999]
[1752210259748,0.8198,2971.9,2971.6,5.74780123]
[1752210259957,0.8198,2971.9,2971.8,0.168]
[1752210260151,0.8198,2971.9,2971.8,0.73391068]
[1752210260649,0.8198,2971.9,2971.8,1.2838043]
[1752210260650,0.04,2971.9,2971.8,1.2838043]
[1752210260846,0.04,2971.9,2971.8,0.168]
[1752210261919,0.04,2971.9,2971.8,0.20164963]
[1752210262150,0.04,2971.9,2971.8,13.16051222]
[1752210262330,0.04,2971.9,2971.8,13.12686259]
[1752210262647,0.04,2971.9,2971.8,28.69803088]
[1752210263436,0.04,2971.9,2971.8,25.33306689]
[1752210263642,0.04,2971.9,2971.8,23.94775621]
[1752210263846,0.04,2971.9,2971.8,23.39786259]
[1752210264343,0.04,2971.9,2971.8,23.96377327]
[1752210264549,0.04,2971.9,2971.8,24.51366689]
[1752210265447,0.04,2971.9,2971.8,27.71063088]
[1752210265657,0.04,2971.9,2971.8,28.46363088]
[1752210265825,0.04,2971.9,2971.8,29.01363088]
[1752210266331,0.018,2972.1,2972.0,14.19463755]
[1752210266534,0.018,2972.1,2972.0,32.32949403]
[1752210267050,0.018,2972.1,2970.8,0.24638414]
[1752210267051,0.018,2972.1,2971.3,0.8299]
[1752210267247,0.018,2972.1,2971.4,5.138]
[1752210267483,0.7582,2972.0,2971.7,10.0]
[1752210267757,0.7582,2972.0,2971.5,5.137]
[1752210267955,0.7582,2972.0,2970.9,4.6680657]
[1752210267956,0.7582,2972.0,2970.9,0.51489362]
[1752210268162,0.7582,2972.0,2971.0,10.88680123]
[1752210268336,0.7582,2972.0,2971.1,5.141]
[1752210268536,0.7582,2972.0,2970.5,1.01247097]
[1752210268537,5.74780123,2971.5,2970.5,0.48239362]
[1752210268739,0.7708,2971.3,2970.0,5.74780123]
[1752210268933,0.7708,2971.3,2969.8,3.36723011]
[1752210269131,0.7708,2971.3,2969.9,5.146]
[1752210269355,0.7708,2971.3,2970.0,10.0]
[1752210269543,0.7708,2971.3,2970.2,10.0]
[1752210269732,0.7708,2971.3,2970.4,10.0]
[1752210269929,0.7708,2971.3,2970.3,5.146]
[1752210270138,0.7708,2971.3,2969.8,3.81790769]
[1752210270449,0.7708,2971.3,2969.9,15.5957042]
[1752210270650,0.7708,2971.3,2969.9,10.4507042]
[1752210270840,0.7708,2971.3,2970.1,10.0]
[1752210271037,0.7708,2971.3,2970.3,10.0]
[1752210271249,0.7708,2971.3,2970.4,0.03366549]
[1752210271839,0.7708,2971.3,2970.5,0.4507042]
[1752210272049,0.7708,2971.3,2970.6,15.17766323]
[1752210272247,0.7708,2971.3,2970.7,0.4507042]
[1752210272445,0.7708,2971.3,2970.8,0.03366096]
[1752210272755,0.7708,2971.3,2971.0,10.0]
[1752210272936,0.764,2972.0,2971.2,10.0]
[1752210273142,0.764,2972.0,2971.3,0.0336553]
[1752210274538,0.764,2972.0,2971.2,10.0]
[1752210275040,0.764,2972.0,2971.3,0.0336553]
[1752210275455,0.764,2972.0,2971.8,0.168]
[1752210276641,0.764,2972.0,2971.5,5.145]
[1752210276863,0.764,2972.0,2971.9,0.168]
[1752210278158,0.018,2972.1,2971.9,0.168]
[1752210278337,0.018,2972.1,2972.0,0.03364737]
[1752210278544,0.018,2972.1,2971.9,0.168]
[1752210282645,0.018,2972.1,2972.0,0.03364737]
[1752210284877,0.018,2972.1,2972.0,0.39029823]
[1752210285177,0.018,2972.1,2972.0,3.75503578]
[1752210285744,0.018,2972.1,2972.0,3.72138841]
[1752210286269,0.018,2972.1,2972.0,4.57593578]
[1752210286860,0.018,2972.1,2972.0,15.12593578]
[1752210287194,0.018,2972.1,2972.0,15.09228841]
[1752210288582,0.018,2972.1,2972.0,16.02892635]
[1752210288942,0.018,2972.1,2972.0,14.54228841]
[1752210289684,0.018,2972.1,2972.0,15.09228841]
[1752210289880,14.47000001,2972.9,2972.8,3.36383207]
[1752210290041,14.47000001,2972.9,2972.8,4.0366134]
[1752210290240,14.47000001,2972.9,2972.8,14.07025172]
[1752210290574,14.47000001,2972.9,2972.8,14.2046134]
[1752210291467,14.47000001,2972.9,2972.8,10.84078133]
[1752210294905,14.47000001,2972.9,2972.8,11.15194125]
[1752210295103,15.26820001,2972.9,2972.8,15.63115992]
[1752210296084,15.26820001,2972.9,2972.8,15.32]
[1752210296464,15.26820001,2972.9,2972.8,10.168]
[1752210297391,14.47000001,2972.9,2972.8,10.168]
[1752210297602,14.46822832,2972.9,2972.8,11.6999]
[1752210298063,14.46822832,2972.9,2972.8,0.168]
[1752210298393,15.28132832,2972.9,2972.8,0.168]
[1752210298598,14.46822832,2972.9,2972.8,0.168]
[1752210299463,15.28132832,2972.9,2972.8,0.168]
[1752210299860,14.46822832,2972.9,2972.8,0.168]
[1752210301342,15.28132832,2972.9,2972.8,0.168]
[1752210301477,17.43556115,2972.9,2972.1,10.0]
[1752210301666,17.43556115,2972.9,2972.0,0.35665086]
[1752210301667,5.153,2972.8,2972.7,0.168]
[1752210302014,14.46822832,2972.9,2972.7,0.168]
[1752210302179,14.46822832,2972.9,2972.8,16.42317206]
[1752210302385,14.46822832,2972.9,2972.8,15.63893374]
[1752210302685,14.46822832,2972.9,2972.8,17.57798582]
[1752210303582,14.46822832,2972.9,2972.8,20.94181789]
[1752210304305,14.46822832,2972.9,2972.8,21.74921789]
[1752210304604,14.46822832,2972.9,2972.8,22.29921789]
[1752210304773,14.46822832,2972.9,2972.8,23.41376422]
[1752210305668,4.62407949,2972.9,2972.8,23.41376422]
[1752210305868,4.22079468,2972.9,2972.8,23.41376422]
[1752210306468,2.22,2973.2,2973.0,0.7886]
[1752210306705,0.8316,2974.7,2973.3,0.55]
[1752210306891,0.94096787,2975.9,2973.5,23.31256464]
[1752210306892,6.0026,2975.0,2973.5,23.31256464]
[1752210307091,6.0026,2975.0,2973.8,4.70130092]
[1752210307303,6.0026,2975.0,2973.8,9.87330092]
[1752210307630,6.0026,2975.0,2973.8,10.12303793]
[1752210307812,6.0026,2975.0,2973.8,0.7886]
[1752210307975,0.7512,2974.4,2973.8,5.17]
[1752210308173,0.7512,2974.4,2973.8,15.17]
[1752210309190,0.7512,2974.4,2973.8,10.0]
[1752210309409,0.7512,2974.4,2973.8,15.171]
[1752210309792,0.7512,2974.4,2973.8,15.172]
[1752210310029,0.7512,2974.4,2973.8,15.48168578]
[1752210310331,0.7512,2974.4,2973.8,15.171]
[1752210310518,0.7512,2974.4,2973.8,15.48173099]
[1752210312216,0.7512,2974.4,2973.8,15.64973099]
[1752210312823,0.7512,2974.4,2973.8,10.47873099]
[1752210314190,0.7512,2974.4,2973.8,13.06639796]
[1752210314929,0.168,2975.0,2973.8,13.06639796]
[1752210315158,0.04,2975.9,2974.7,0.55]
[1752210315335,0.04,2975.9,2974.2,2.019]
[1752210315336,0.04,2975.9,2975.6,11.3598]
[1752210315541,0.27619456,2976.3,2975.7,5.53773099]
[1752210315697,0.27619456,2976.3,2975.8,10.34433539]
[1752210315895,0.27619456,2976.3,2975.6,0.8098]
[1752210315896,0.27619456,2976.3,2975.9,0.31073099]
[1752210316141,0.27619456,2976.3,2976.0,0.31073099]
[1752210316444,0.8186,2976.2,2975.2,0.03361118]
[1752210316632,0.8186,2976.2,2975.3,0.31046336]
[1752210316832,0.8186,2976.2,2974.7,10.24976896]
[1752210316833,0.55,2976.1,2975.4,0.31046336]
[1752210317032,0.796,2976.0,2975.5,0.31046336]
[1752210317339,0.55,2975.9,2975.6,0.31046336]
[1752210317555,0.55,2975.9,2974.2,0.7549]
[1752210317556,11.569,2975.8,2974.2,6.1409]
[1752210317716,0.7808,2975.5,2974.3,0.3105543]
[1752210317916,0.7808,2975.5,2974.4,0.3105543]
[1752210318114,0.7808,2975.5,2974.5,0.34417339]
[1752210318312,0.7808,2975.5,2974.6,0.3105543]
[1752210318512,0.55,2975.4,2974.7,0.3105543]
[1752210318713,0.8091,2975.3,2974.8,0.31062874]
[1752210318910,0.8091,2975.3,2974.9,0.31062874]
[1752210319154,0.8091,2975.3,2975.0,0.31062874]
[1752210319340,0.8091,2975.3,2975.1,0.31062874]
[1752210319554,0.8091,2975.3,2975.2,0.31062874]
[1752210320719,1.3591,2975.3,2975.2,0.31062874]
[1752210321523,0.8091,2975.3,2975.2,0.31075699]
[1752210322037,6.1881,2975.3,2975.2,0.31075699]
[1752210323018,0.8091,2975.3,2975.2,0.31075699]
[1752210323933,0.7859,2976.1,2975.2,0.31075699]
[1752210324135,0.7859,2976.1,2975.3,0.31075699]
[1752210324136,5.374,2976.0,2975.3,0.31075699]
[1752210324454,0.61599,2975.9,2975.4,0.31009465]
[1752210324670,0.61599,2975.9,2975.5,0.31009465]
[1752210324829,5.374,2975.8,2975.6,0.31009465]
[1752210325025,5.374,2975.8,2975.7,0.31009465]
[1752210325240,0.168,2976.0,2975.7,0.31009465]
[1752210325421,5.539,2976.0,2975.8,0.31009465]
[1752210325652,5.539,2976.0,2975.9,0.31009465]
[1752210325853,6.17169,2976.0,2975.9,0.31009465]
[1752210326026,0.80069,2976.0,2975.9,0.31009465]
[1752210326225,0.7859,2976.1,2975.9,0.31009465]
[1752210326424,0.002,2976.2,2976.0,0.31009465]
[1752210326752,0.002,2976.2,2976.1,4.62689781]
[1752210327066,0.27619456,2976.3,2976.2,13.35998924]
[1752210327365,0.27619456,2976.3,2976.2,0.31009465]
[1752210327862,0.27619456,2976.3,2976.2,10.31009465]
[1752210328157,0.27619456,2976.3,2976.2,0.30977416]
[1752210328470,0.27619456,2976.3,2976.2,0.34337405]
[1752210328668,0.27619456,2976.3,2976.2,3.70336329]
[1752210328973,0.27619456,2976.3,2976.2,6.79563826]
[1752210329460,0.27619456,2976.3,2976.2,16.79563826]
[1752210329629,0.27619456,2976.3,2976.2,12.85204913]
[1752210329829,0.27619456,2976.3,2976.2,16.21203837]
[1752210330261,0.27619456,2976.3,2976.2,16.76203837]
[1752210330563,0.27619456,2976.3,2976.2,12.85204913]
[1752210330872,0.27619456,2976.3,2976.2,10.30977416]
[1752210331596,0.27619456,2976.3,2976.2,0.30977416]
[1752210332950,0.27619456,2976.3,2976.2,0.30972843]
[1752210333570,0.27619456,2976.3,2975.9,0.8227]
[1752210333891,0.27619456,2976.3,2976.0,0.03360215]
[1752210334059,0.27619456,2976.3,2976.0,0.59992297]
[1752210334395,0.27619456,2976.3,2976.2,10.0]
[1752210334606,0.27619456,2976.3,2976.2,12.48404535]
[1752210335176,0.27619456,2976.3,2976.2,12.79368489]
[1752210335571,0.04,2976.9,2976.2,12.79368489]
[1752210335773,0.04,2976.9,2976.3,0.3432383]
[1752210336086,0.04,2976.9,2976.4,0.30963954]
[1752210336386,0.04,2976.9,2976.5,0.34323604]
[1752210336567,0.04,2976.9,2976.6,0.30963954]
[1752210336771,0.04,2976.9,2976.7,0.30963954]
[1752210337068,0.04,2976.9,2976.8,0.30963954]
[1752210342105,0.042,2976.9,2976.8,0.30963954]
[1752210342473,0.042,2976.9,2976.8,0.34323266]
[1752210342861,0.04,2976.9,2976.8,0.30963954]
[1752210343303,0.04,2976.9,2976.8,0.34323266]
[1752210345112,0.04,2976.9,2976.8,1.71350842]
[1752210345408,0.04,2976.9,2976.8,11.6799153]
[1752210345912,0.04,2976.9,2976.8,11.67934754]
[1752210346061,0.04,2976.9,2976.8,10.30907178]
[1752210347508,5.21,2977.6,2976.8,10.30907178]
[1752210347678,5.21,2977.6,2976.9,0.34266377]
[1752210348004,5.21,2977.6,2977.0,0.30907178]
[1752210348302,5.21,2977.6,2977.1,0.34266151]
[1752210348303,5.96433,2977.6,2977.1,0.34266151]
[1752210348615,5.96433,2977.6,2977.2,0.30907178]
[1752210348924,5.96433,2977.6,2977.3,0.30907178]
[1752210348925,5.365,2977.5,2977.3,0.30907178]
[1752210349207,5.364,2977.5,2977.4,0.30907178]
[1752210349765,5.363,2977.5,2977.4,0.30907178]
[1752210350610,0.7533,2977.7,2977.4,0.30907178]
[1752210350912,5.36,2977.6,2977.5,0.30907178]
[1752210351111,0.7533,2977.7,2977.5,0.30907178]
[1752210351265,0.7533,2977.7,2977.6,0.30907178]
[1752210351662,6.1103,2977.7,2977.6,0.30907178]
[1752210353195,6.72103628,2977.7,2977.6,0.30907178]
[1752210354168,6.1103,2977.7,2977.6,0.30907178]
[1752210355708,0.04,2977.9,2977.6,0.30907178]
[1752210355892,5.347,2977.8,2977.7,0.30907178]
[1752210356079,0.04,2977.9,2977.8,0.1672]
[1752210356281,5.388,2977.9,2977.8,0.47627178]
[1752210356480,6.7416,2977.9,2977.8,0.30907178]
[1752210356681,6.9088,2977.9,2977.8,0.30907178]
[1752210356889,1.3936,2977.9,2977.8,0.30907178]
[1752210357091,6.2038,2977.9,2977.8,0.30907178]
[1752210357278,0.8548,2977.9,2977.8,0.30907178]
[1752210357479,6.2028,2977.9,2977.8,0.30907178]
[1752210359900,6.37,2977.9,2977.8,0.30907178]
[1752210361513,1.022,2977.9,2977.8,0.30907178]
[1752210361715,10.8148,2977.8,2977.1,0.1672]
[1752210362029,0.8148,2976.5,2975.9,0.001]
[1752210362195,5.338,2976.4,2975.9,0.001]
[1752210362387,5.5052,2976.4,2975.9,0.001]
[1752210362986,11.41621762,2976.9,2975.9,0.001]
[1752210362987,8.057,2976.9,2976.0,0.8001]
[1752210363203,8.057,2976.9,2976.6,0.1672]
[1752210363204,5.344,2976.7,2976.6,0.1672]
[1752210363583,5.344,2976.7,2975.9,0.001]
[1752210363789,0.1672,2976.4,2975.9,0.169]
[1752210364013,5.299,2976.3,2975.9,0.169]
[1752210364624,5.299,2976.3,2975.9,0.001]
[1752210364824,14.73331505,2976.0,2975.9,0.001]
[1752210365114,17.40374038,2976.0,2975.9,0.001]
[1752210365290,22.75674038,2976.0,2975.9,0.001]
[1752210365786,22.75674038,2976.0,2974.2,0.7643]
[1752210365787,3.91097354,2975.4,2974.2,0.7643]
[1752210366004,3.91097354,2975.4,2974.4,0.168]
[1752210366005,3.91112019,2975.2,2974.4,0.168]
[1752210366337,0.168,2974.9,2974.4,0.168]
[1752210366515,0.8231,2975.3,2974.1,0.04]
[1752210366687,5.356,2975.2,2974.8,0.168]
[1752210367217,5.358,2975.2,2974.7,0.50605284]
[1752210367422,8.058,2975.5,2975.1,0.168]
[1752210367589,5.357,2975.3,2975.1,0.168]
[1752210367916,5.357,2975.3,2975.2,0.168]
[1752210368618,5.357,2975.4,2975.2,0.168]
[1752210369022,0.168,2975.9,2975.2,0.168]
[1752210369226,5.357,2975.8,2975.2,0.168]
[1752210369524,5.356,2975.7,2975.5,0.168]
[1752210369716,0.7573,2976.1,2975.1,0.8123]
[1752210370026,5.356,2976.3,2976.0,0.168]
[1752210370391,5.356,2976.3,2975.1,0.8123]
[1752210370621,0.7882,2976.2,2975.1,0.8123]
[1752210370824,0.168,2975.9,2975.4,0.168]
[1752210371022,8.06,2976.6,2974.1,0.04]
[1752210371023,8.8482,2976.6,2975.3,3.36089988]
[1752210371223,9.0154,2976.6,2975.8,0.168]
[1752210371423,5.364,2976.5,2976.2,0.1672]
[1752210372131,8.06,2976.6,2975.9,0.03360327]
[1752210372297,8.06,2976.6,2976.3,0.1672]
[1752210372503,8.06,2976.6,2975.5,0.7778]
[1752210372504,5.362,2976.5,2975.5,0.7778]
[1752210372699,5.362,2976.5,2976.0,0.168]
[1752210373026,5.362,2976.4,2975.6,0.03360666]
[1752210373217,8.06,2976.6,2976.3,0.1672]
[1752210373530,5.362,2976.5,2976.3,0.1672]
[1752210374022,5.362,2976.5,2976.0,0.168]
[1752210374222,6.72092,2976.5,2976.0,0.168]
[1752210374427,1.35892,2976.5,2976.0,0.168]
[1752210374629,5.359,2976.4,2976.0,0.168]
[1752210374829,0.7964,2976.9,2976.1,0.81140102]
[1752210375130,5.36,2976.8,2976.5,0.1672]
[1752210376714,5.99445,2976.8,2976.5,0.1672]
[1752210377226,5.99445,2976.8,2976.1,0.7778]
[1752210377227,5.99445,2976.8,2975.7,0.832]
[1752210377427,5.99445,2976.8,2976.1,0.168]
[1752210377428,0.1672,2976.6,2976.1,0.168]
[1752210378213,0.7541,2976.5,2976.1,0.168]
[1752210378423,5.354,2976.4,2976.1,0.168]
[1752210378627,0.61081,2976.3,2976.1,0.168]
[1752210381208,0.1672,2976.6,2976.1,0.168]
[1752210381428,5.347,2976.5,2975.8,0.0336044]
[1752210381839,5.347,2976.5,2975.7,0.832]
[1752210382446,0.7832,2976.4,2975.7,0.832]
[1752210382950,5.344,2976.3,2975.7,0.832]
[1752210383349,0.7832,2976.4,2975.7,0.832]
[1752210383554,5.343,2976.3,2975.7,0.832]
[1752210383711,5.341,2976.3,2975.7,0.832]
[1752210384744,0.8117,2976.9,2975.7,0.832]
[1752210384948,5.34,2976.8,2975.8,0.0336044]
[1752210385610,0.8117,2976.9,2975.8,0.0336044]
[1752210386014,5.336,2976.8,2975.8,0.0336044]
[1752210386214,0.8117,2976.9,2975.8,0.0336044]
[1752210386516,5.335,2976.8,2975.8,0.0336044]
[1752210386744,0.61467,2976.7,2975.8,0.0336044]
[1752210387023,0.61467,2976.7,2975.7,0.832]
[1752210388846,0.46015199,2976.7,2975.7,0.832]
[1752210391151,0.55,2976.6,2975.7,0.832]
[1752210391343,0.1672,2976.3,2975.8,0.168]
[1752210391643,5.323,2976.2,2975.8,0.0336044]
[1752210391948,0.1672,2976.5,2976.0,0.168]
[1752210392151,5.323,2976.3,2976.0,0.168]
[1752210392316,5.87202,2976.3,2976.0,0.168]
[1752210393743,0.71622,2976.3,2975.8,0.168]
[1752210393948,5.4892,2976.3,2975.8,0.168]
[1752210395747,0.1672,2976.3,2975.8,0.168]
[1752210395931,5.4852,2976.3,2975.8,0.168]
[1752210397528,5.311,2976.2,2975.8,0.168]
[1752210397851,0.7996,2976.8,2975.9,0.03360327]
[1752210398067,0.1672,2976.7,2976.2,0.1672]
[1752210398349,5.4772,2976.7,2976.2,0.1672]
[1752210398527,6.10488,2976.7,2976.2,0.1672]
[1752210399463,0.79488,2976.7,2976.2,0.1672]
[1752210399760,0.002,2976.8,2976.6,0.1672]
[1752210400117,0.002,2976.8,2976.7,0.03359424]
[1752210400313,0.002,2976.8,2976.7,0.8016]
[1752210403621,0.002,2976.8,2976.7,1.90183954]
[1752210404051,0.002,2976.8,2976.7,0.8016]
[1752210406450,0.002,2976.8,2976.7,0.83519424]
[1752210406681,0.002,2976.8,2976.7,0.8016]
[1752210406847,0.002,2976.8,2976.7,0.83519424]
[1752210407478,0.002,2976.8,2976.7,0.8016]
[1752210408573,0.002,2976.8,2976.6,0.1672]
[1752210412252,0.002,2976.8,2976.2,0.1672]
[1752210412596,0.1692,2976.8,2976.2,0.1672]
[1752210413483,0.002,2976.8,2976.6,0.1672]
[1752210413803,0.002,2976.8,2976.7,1.79262]
[1752210414362,0.002,2976.8,2976.7,1.82621424]
[1752210414564,0.002,2976.8,2976.7,11.82621424]
[1752210414804,0.002,2976.8,2976.7,11.79262]
[1752210415278,0.002,2976.8,2976.7,1.79262]
[1752210415475,0.002,2976.8,2976.7,1.82621424]
[1752210415688,0.002,2976.8,2976.7,11.82621424]
[1752210415881,0.002,2976.8,2976.7,11.79262]
[1752210416071,0.002,2976.8,2976.7,1.79262]
[1752210416272,0.002,2976.8,2976.7,1.82621424]
[1752210416787,0.002,2976.8,2976.7,11.82621424]
[1752210416986,0.002,2976.8,2976.7,5.15204486]
[1752210417158,0.002,2976.8,2976.7,5.1856391]
[1752210417808,0.002,2976.8,2976.7,5.15204486]
[1752210418257,0.002,2976.8,2976.7,5.1856391]
[1752210418673,0.002,2976.8,2976.7,5.15204486]
[1752210419079,0.002,2976.8,2976.7,1.79262]
[1752210419289,0.002,2976.8,2976.7,1.82621424]
[1752210419495,0.002,2976.8,2976.7,10.7759]
[1752210420364,0.002,2976.8,2976.7,22.74624932]
[1752210420665,0.04,2977.9,2976.9,10.0]
[1752210420888,0.04,2977.9,2977.2,8.61092446]
[1752210421065,0.04,2977.9,2977.7,0.1672]
[1752210421891,0.04,2977.9,2977.8,0.03358183]
[1752210422367,0.04,2977.9,2977.7,0.9881]
[1752210422895,0.04,2977.9,2977.7,0.1672]
[1752210423118,0.7879,2977.8,2977.7,0.1672]
[1752210423266,0.04,2977.9,2977.6,0.1672]
[1752210423593,0.04,2977.9,2977.8,0.1672]
[1752210423765,0.04,2977.9,2977.8,20.60176219]
[1752210423971,0.04,2977.9,2977.8,21.0771982]
[1752210424212,0.04,2977.9,2977.8,20.60476219]
[1752210424665,0.04,2977.9,2977.8,21.55119205]
[1752210425167,0.04,2977.9,2977.8,12.90600816]
[1752210425368,0.04,2977.9,2977.8,21.0805621]
[1752210425568,0.04,2977.9,2977.8,21.55119205]
[1752210425791,0.04,2977.9,2977.8,22.10119205]
[1752210426315,0.04,2977.9,2977.8,20.60476219]
[1752210426607,0.04,2977.9,2977.8,21.0805621]
[1752210426898,0.04,2978.9,2978.4,0.7604]
[1752210427076,0.04,2978.9,2978.6,10.0]
[1752210427264,0.04,2978.9,2978.8,0.1672]
[1752210427923,0.04,2978.9,2978.8,24.85765653]
[1752210428123,0.005,2979.2,2978.9,14.11734383]
[1752210428697,0.79675849,2980.2,2979.2,7.4736116]